fUSD/lending_fUSD_20240301
["ID","MTS","AMOUNT","RATE_DAILY","PERIOD"]
[315940646,1709294734819,-745.08,0.0002205,2]
[315940647,1709294734843,-500.0,0.0002205,2]
[315940648,1709294734868,-600.85,0.0002205,2]
[315940649,1709294734893,-500.0,0.0002205,2]
[315940650,1709294734922,-500.0,0.0002205,2]
[315940651,1709294734947,-500.0,0.0002205,2]
[315940652,1709294734973,-507.37463962,0.0002205,2]
[315940653,1709294734999,-500.0,0.0002205,2]
[315940654,1709294735026,-1542.8,0.0002205,2]
[315940655,1709294735055,-500.0,0.0002205,2]
[315940656,1709294735080,-500.0,0.0002205,2]
[315940657,1709294735107,-500.0,0.0002205,2]
[315940658,1709294735133,-550.93,0.0002205,2]
[315940659,1709294735157,-500.0,0.0002205,2]
[315940660,1709294735184,-500.0,0.0002205,2]
[315940661,1709294735210,-500.0,0.0002205,2]
[315940662,1709294735236,-500.0,0.0002205,2]
[315940663,1709294735261,-500.0,0.0002205,2]
[315940664,1709294735286,-500.0,0.0002205,2]
[315940665,1709294735316,-1194.1,0.0002205,2]
[315940666,1709294735341,-500.0,0.0002205,2]
[315940667,1709294735365,-500.0,0.0002205,2]
[315940668,1709294735390,-500.0,0.0002205,2]
[315940669,1709294735415,-503.07403101,0.0002205,2]
[315940670,1709294735440,-695.14,0.0002205,2]
[315940671,1709294735469,-500.0,0.0002205,2]
[315940672,1709294735495,-500.0,0.0002205,2]
[315940673,1709294735521,-465.40726889,0.0002205,2]
[315940674,1709294735546,-500.0,0.0002205,2]
[315940675,1709294735571,-500.0,0.0002205,2]
[315940676,1709294735597,-500.0,0.0002205,2]
[315940677,1709294735622,-500.0,0.0002205,2]
[315940678,1709294735648,-500.0,0.0002205,2]
[315940679,1709294735672,-500.0,0.0002205,2]
[315940680,1709294735697,-500.0,0.0002205,2]
[315940681,1709294735722,-500.0,0.0002205,2]
[315940682,1709294735749,-500.0,0.0002205,2]
[315940683,1709294735774,-500.0,0.0002205,2]
[315940684,1709294735800,-500.0,0.0002205,2]
[315940685,1709294735826,-526.7775152,0.0002205,2]
[315940686,1709294735852,-500.0,0.0002205,2]
[315940687,1709294735878,-500.0,0.0002205,2]
[315940688,1709294735905,-500.0,0.0002205,2]
[315940689,1709294735930,-500.0,0.0002205,2]
[315940690,1709294735955,-500.0,0.0002205,2]
[315940691,1709294735982,-500.0,0.0002205,2]
[315940692,1709294736010,-707.17,0.0002205,2]
[315940693,1709294736036,-1350.21,0.0002205,2]
[315940694,1709294736061,-500.0,0.0002205,2]
[315940695,1709294736087,-500.0,0.0002205,2]
[315940696,1709294736116,-500.0,0.0002205,2]
[315940697,1709294736142,-508.95425442,0.0002205,2]
[315940698,1709294736168,-500.0,0.0002205,2]
[315940699,1709294736194,-1936.94,0.0002205,2]
[315940700,1709294736219,-500.0,0.0002205,2]
[315940701,1709294736244,-500.0,0.0002205,2]
[315940702,1709294736269,-500.0,0.0002205,2]
[315940703,1709294736295,-500.0,0.0002205,2]
[315940704,1709294736318,-501.29859591,0.0002205,2]
[315940705,1709294736342,-500.0,0.0002205,2]
[315940706,1709294736369,-11309.04,0.0002205,2]
[315940707,1709294736394,-500.0,0.0002205,2]
[315940708,1709294736418,-500.0,0.0002205,2]
[315940709,1709294736455,-500.0,0.0002205,2]
[315940710,1709294736479,-500.0,0.0002205,2]
[315940711,1709294736506,-500.0,0.0002205,2]
[315940712,1709294736532,-500.0,0.0002205,2]
[315940713,1709294736556,-500.37685357,0.0002205,2]
[315940714,1709294736583,-500.0,0.0002205,2]
[315940715,1709294736609,-500.0,0.0002205,2]
[315940716,1709294736635,-500.0,0.0002205,2]
[315940717,1709294736660,-316.35054484,0.0002205,2]
[315940718,1709294736687,-500.0,0.0002205,2]
[315940719,1709294736713,-500.0,0.0002205,2]
[315940720,1709294736741,-904.95,0.0002205,2]
[315940721,1709294736767,-500.0,0.0002205,2]
[315940722,1709294736793,-500.0,0.0002205,2]
[315940723,1709294736820,-626.8,0.0002205,2]
[315940724,1709294736846,-500.0,0.0002205,2]
[315940725,1709294736872,-500.0,0.0002205,2]
[315940726,1709294736898,-500.0,0.0002205,2]
[315940727,1709294736925,-500.0,0.0002205,2]
[315940728,1709294736952,-500.0,0.0002205,2]
[315940729,1709294736979,-150.0,0.0002205,2]
[315940730,1709294737008,-500.0,0.0002205,2]
[315940731,1709294737035,-520.2134913,0.0002205,2]
[315940732,1709294737060,-500.0,0.0002205,2]
[315940733,1709294737259,-500.0,0.0002205,2]
[315940734,1709294737286,-500.0,0.0002205,2]
[315940735,1709294737310,-500.0,0.0002205,2]
[315940736,1709294737333,-500.0,0.0002205,2]
[315940737,1709294737357,-500.0,0.0002205,2]
[315940738,1709294737384,-500.0,0.0002205,2]
[315940739,1709294737407,-500.0,0.0002205,2]
[315940740,1709294737430,-417.96748144,0.0002205,10]
[315940741,1709294737454,-500.0,0.0002205,2]
[315940742,1709294737478,-500.0,0.0002205,2]
[315940743,1709294737505,-500.0,0.0002205,2]
[315940744,1709294737530,-540.72488638,0.0002205,2]
[315940745,1709294737554,-500.0,0.0002205,2]
[315940746,1709294737579,-500.0,0.0002205,2]
[315940747,1709294737603,-515.59878021,0.0002205,2]
[315940748,1709294737627,-207.68238455,0.0002205,2]
[315940749,1709294737652,-500.0,0.0002205,2]
[315940750,1709294737676,-500.0,0.0002205,2]
[315940751,1709294737700,-500.0,0.0002205,2]
[315940752,1709294737725,-420.61715607,0.0002205,2]
[315940753,1709294737751,-500.0,0.0002205,2]
[315940754,1709294737776,-500.0,0.0002205,2]
[315940755,1709294737801,-649.09,0.0002205,2]
[315940756,1709294737827,-2501.91949882,0.0002205,2]
[315940757,1709294737851,-509.7151229,0.0002205,2]
[315940758,1709294737876,-500.0,0.0002205,2]
[315940759,1709294737901,-518.27769672,0.0002205,2]
[315940760,1709294737926,-500.0,0.0002205,2]
[315940761,1709294737951,-510.9273071,0.0002205,2]
[315940762,1709294737981,-500.0,0.0002205,2]
[315940763,1709294738009,-5023.01052654,0.0002205,2]
[315940764,1709294738034,-500.0,0.0002205,2]
[315940765,1709294738058,-500.0,0.0002205,2]
[315940766,1709294738083,-500.0,0.0002205,2]
[315940767,1709294738108,-500.0,0.0002205,2]
[315940768,1709294738136,-500.0,0.0002205,2]
[315940769,1709294738159,-500.0,0.0002205,2]
[315940770,1709294738185,-500.0,0.0002205,2]
[315940771,1709294738210,-500.0,0.0002205,2]
[315940772,1709294738236,-500.0,0.0002205,2]
[315940773,1709294738261,-500.0,0.0002205,2]
[315940774,1709294738286,-500.0,0.0002205,2]
[315940775,1709294738311,-500.0,0.0002205,2]
[315940776,1709294738334,-500.0,0.0002205,2]
[315940777,1709294738358,-500.0,0.0002205,2]
[315940778,1709294738382,-502.8984217,0.0002205,2]
[315940779,1709294738405,-500.0,0.0002205,2]
[315940780,1709294738429,-500.0,0.0002205,2]
[315940781,1709294738453,-527.53,0.0002205,2]
[315940782,1709294738477,-500.0,0.0002205,2]
[315940783,1709294738503,-881.76,0.0002205,2]
[315940784,1709294738527,-500.0,0.0002205,2]
[315940785,1709294738550,-500.0,0.0002205,2]
[315940786,1709294738573,-296.01754933,0.0002205,2]
[315940787,1709294741332,-500.0,0.00021391,2]
[315940788,1709294741358,-92806.2651,0.0002195,2]
[315940789,1709294741384,-203.98245067,0.0002205,2]
[315940790,1709294741410,-500.0,0.0002205,2]
[315940791,1709294741435,-500.0,0.0002205,2]
[315940792,1709294741460,-500.0,0.0002205,2]
[315940793,1709294741486,-500.0,0.0002205,2]
[315940794,1709294741511,-500.0,0.0002205,2]
[315940795,1709294741536,-500.0,0.0002205,2]
[315940796,1709294741561,-602.99118651,0.0002205,2]
[315940797,1709294741586,-619.73,0.0002205,2]
[315940798,1709294741610,-500.0,0.0002205,2]
[315940799,1709294741634,-500.0,0.0002205,2]
[315940800,1709294741658,-500.0,0.0002205,2]
[315940801,1709294741683,-500.0,0.0002205,2]
[315940802,1709294741708,-267.03126282,0.0002205,2]
[315940803,1709294749232,-155.0,0.00022049,2]
[315940804,1709294749259,-232.96873718,0.0002205,2]
[315940805,1709294749284,-1371.4,0.0002205,2]
[315940806,1709294749309,-500.0,0.0002205,2]
[315940807,1709294749334,-395.91291175,0.0002205,2]
[315940808,1709294749359,-500.0,0.0002205,2]
[315940809,1709294749384,-500.0,0.0002205,2]
[315940810,1709294749409,-500.0,0.0002205,2]
[315940811,1709294749434,-812.3,0.0002205,2]
[315940812,1709294749459,-535.1,0.0002205,2]
[315940813,1709294749484,-500.0,0.0002205,2]
[315940814,1709294749509,-500.0,0.0002205,2]
[315940815,1709294749533,-500.0,0.0002205,2]
[315940816,1709294749561,-500.0,0.0002205,2]
[315940817,1709294749586,-502.44483277,0.0002205,2]
[315940818,1709294749611,-514.47,0.0002205,2]
[315940819,1709294749635,-500.0,0.0002205,2]
[315940820,1709294749660,-500.0,0.0002205,2]
[315940821,1709294749685,-500.0,0.0002205,2]
[315940822,1709294749710,-500.0,0.0002205,2]
[315940823,1709294749735,-500.0,0.0002205,2]
[315940824,1709294749760,-500.0,0.0002205,2]
[315940825,1709294749785,-500.0,0.0002205,2]
[315940826,1709294749810,-500.0,0.0002205,2]
[315940827,1709294749835,-500.0,0.0002205,2]
[315940828,1709294749861,-500.0,0.0002205,2]
[315940829,1709294749885,-500.0,0.0002205,2]
[315940830,1709294749909,-500.0,0.0002205,2]
[315940831,1709294749934,-508.79930249,0.0002205,2]
[315940832,1709294749958,-500.0,0.0002205,2]
[315940833,1709294749983,-778.58,0.0002205,2]
[315940834,1709294750009,-500.0,0.0002205,2]
[315940835,1709294750034,-500.0,0.0002205,2]
[315940836,1709294750060,-677.28,0.0002205,2]
[315940837,1709294750085,-565.7299911,0.0002205,2]
[315940838,1709294750111,-508.79985074,0.0002205,2]
[315940839,1709294750139,-730.11,0.0002205,2]
[315940840,1709294750164,-500.0,0.0002205,2]
[315940841,1709294750189,-500.0,0.0002205,2]
[315940842,1709294750216,-496.66254447,0.0002205,2]
[315940843,1709294750242,-652.66,0.0002205,2]
[315940844,1709294750269,-500.0,0.0002205,2]
[315940845,1709294750294,-500.0,0.0002205,2]
[315940846,1709294750319,-504.22047328,0.0002205,2]
[315940847,1709294750344,-500.0,0.0002205,2]
[315940848,1709294750369,-500.0,0.0002205,2]
[315940849,1709294750395,-500.0,0.0002205,2]
[315940850,1709294750419,-500.0,0.0002205,2]
[315940851,1709294750444,-500.0,0.0002205,2]
[315940852,1709294750469,-500.0,0.0002205,2]
[315940853,1709294750493,-501.2614507,0.0002205,2]
[315940854,1709294750518,-500.0,0.0002205,2]
[315940855,1709294750543,-502.50216768,0.0002205,2]
[315940856,1709294750568,-2450.06,0.0002205,2]
[315940857,1709294750603,-500.0,0.0002205,2]
[315940858,1709294750632,-500.0,0.0002205,2]
[315940859,1709294750658,-500.0,0.0002205,2]
[315940860,1709294750684,-500.0,0.0002205,2]
[315940861,1709294750710,-500.0,0.0002205,2]
[315940862,1709294750735,-500.0,0.0002205,2]
[315940863,1709294750763,-2204.3,0.0002205,2]
[315940864,1709294750789,-593.83,0.0002205,2]
[315940865,1709294750815,-500.0,0.0002205,2]
[315940866,1709294750841,-500.0,0.0002205,2]
[315940867,1709294750867,-500.0,0.0002205,2]
[315940868,1709294750893,-500.0,0.0002205,2]
[315940869,1709294750918,-500.0,0.0002205,2]
[315940870,1709294750964,-500.0,0.0002205,2]
[315940871,1709294751002,-500.0,0.0002205,2]
[315940872,1709294751032,-505.49372105,0.0002205,2]
[315940873,1709294751065,-500.0,0.0002205,2]
[315940874,1709294751099,-185.87071217,0.0002205,2]
[315940875,1709294751134,-500.0,0.0002205,2]
[315940876,1709294751168,-500.0,0.0002205,2]
[315940877,1709294751195,-500.0,0.0002205,2]
[315940878,1709294751227,-500.0,0.0002205,2]
[315940879,1709294751258,-507.74227246,0.0002205,2]
[315940880,1709294751292,-1262.73,0.0002205,2]
[315940881,1709294751322,-674.97,0.0002205,2]
[315940882,1709294751349,-500.0,0.0002205,2]
[315940883,1709294751381,-500.0,0.0002205,2]
[315940884,1709294751414,-500.0,0.0002205,2]
[315940885,1709294751446,-500.0,0.0002205,2]
[315940886,1709294751477,-1233.06,0.0002205,2]
[315940887,1709294751510,-500.0,0.0002205,2]
[315940888,1709294751543,-500.0,0.0002205,2]
[315940889,1709294751574,-500.0,0.0002205,2]
[315940890,1709294751604,-500.0,0.0002205,2]
[315940891,1709294751631,-857.23,0.0002205,2]
[315940892,1709294751661,-500.0,0.0002205,2]
[315940893,1709294751693,-500.0,0.0002205,2]
[315940894,1709294751728,-500.0,0.0002205,2]
[315940895,1709294751759,-500.0,0.0002205,2]
[315940896,1709294751788,-500.0,0.0002205,2]
[315940897,1709294751817,-500.0,0.0002205,2]
[315940898,1709294751848,-500.0,0.0002205,2]
[315940899,1709294751888,-500.0,0.0002205,2]
[315940900,1709294751920,-500.0,0.0002205,2]
[315940901,1709294751950,-500.0,0.0002205,2]
[315940902,1709294751981,-500.0,0.0002205,2]
[315940903,1709294752013,-572.56369445,0.0002205,2]
[315940904,1709294752044,-521.80050959,0.0002205,2]
[315940905,1709294752074,-500.0,0.0002205,2]
[315940906,1709294752104,-500.0,0.0002205,2]
[315940907,1709294752134,-500.0,0.0002205,2]
[315940908,1709294752163,-500.0,0.0002205,2]
[315940909,1709294752191,-500.0,0.0002205,2]
[315940910,1709294752222,-510.5946079,0.0002205,2]
[315940911,1709294752250,-500.0,0.0002205,2]
[315940912,1709294752278,-500.0,0.0002205,2]
[315940913,1709294752306,-290.16501657,0.0002205,2]
[315940914,1709294752334,-500.0,0.0002205,2]
[315940915,1709294752364,-943.28,0.0002205,2]
[315940916,1709294752393,-500.0,0.0002205,2]
[315940917,1709294752420,-500.0,0.0002205,2]
[315940918,1709294752448,-1812.71,0.0002205,2]
[315940919,1709294752476,-984.75,0.00022142,2]
[315940920,1709294752505,-500.0,0.00022142,2]
[315940921,1709294752533,-500.0,0.00022143,2]
[315940922,1709294752561,-500.0,0.00022143,2]
[315940923,1709294752589,-500.0,0.00022143,2]
[315940924,1709294752617,-500.0,0.00022143,2]
[315940925,1709294752644,-456.02514722,0.00022143,2]
[315940926,1709294752672,-500.0,0.00022143,2]
[315940927,1709294752700,-500.0,0.00022143,2]
[315940928,1709294752728,-500.0,0.00022143,2]
[315940929,1709294752756,-500.0,0.00022143,2]
[315940930,1709294752783,-500.0,0.00022143,2]
[315940931,1709294752811,-500.0,0.00022143,2]
[315940932,1709294752841,-500.0,0.00022143,2]
[315940933,1709294752869,-500.0,0.00022143,2]
[315940934,1709294752898,-500.0,0.00022143,2]
[315940935,1709294752925,-500.0,0.00022143,2]
[315940936,1709294752952,-500.0,0.00022143,2]
[315940937,1709294752983,-500.0,0.00022143,2]
[315940938,1709294753011,-500.0,0.00022143,2]
[315940939,1709294753038,-500.0,0.00022143,2]
[315940940,1709294753065,-500.0,0.00022143,2]
[315940941,1709294753093,-500.0,0.00022143,2]
[315940942,1709294753124,-500.0,0.00022143,2]
[315940943,1709294753151,-500.0,0.00022143,2]
[315940944,1709294753178,-486.62205643,0.00022143,2]
[315940945,1709294754815,185.97,0.000171,2]
[315940946,1709294796819,-151.22949613,0.00021128,2]
[315940947,1709294796893,269.43302041,0.000171,2]
[315940948,1709294816504,230.56697959,0.000171,2]
[315940949,1709294839387,47.3,0.00016712,2]
[315940950,1709294839411,103.44,0.00016712,2]
[315940964,1709295031624,-177.46352484,0.000199,2]
[315940965,1709295031634,-167.71764309,0.0002,3]
[315940966,1709295031646,-420.24335691,0.0002,3]
[315940967,1709295031656,-155.0,0.00020826,2]
[315940968,1709295031666,-806.06707613,0.00020827,2]
[315940969,1709295031675,-23900.0,0.00020996,2]
[315940970,1709295031685,-648.10237543,0.00021069,2]
[315940971,1709295031698,-451.59762457,0.00021069,2]
[315940972,1709295031708,-1091.64,0.00021096,2]
[315940973,1709295031718,-250.0,0.0002111,2]
[315940974,1709295031727,-2842.58350387,0.00021128,2]
[315940975,1709295031737,-152.0,0.00021299,2]
[315940976,1709295031747,-179.17,0.00021299,2]
[315940977,1709295031757,-554.19,0.00021299,2]
[315940978,1709295031767,-160.23,0.00021377,2]
[315940979,1709295031776,-164.87,0.00021433,2]
[315940980,1709295031786,-2000.0,0.00021433,2]
[315940981,1709295031795,-202.0,0.00021577,2]
[315940982,1709295031804,-202.0,0.00021577,2]
[315940983,1709295031814,-201.0,0.00021577,2]
[315940984,1709295031823,-160.23,0.00021749,2]
[315940985,1709295031833,-500.0,0.0002183,2]
[315940986,1709295031843,-250.0,0.00021872,2]
[315940987,1709295031853,-245.19253225,0.00021872,2]
[315940988,1709295031863,-150.0,0.00021872,2]
[315940989,1709295031873,-152.11721808,0.00021872,2]
[315940990,1709295031883,-150.99,0.00021872,2]
[315940991,1709295031893,-178.0,0.00021872,2]
[315940992,1709295031903,-13455.0,0.0002188,2]
[315940993,1709295031912,-262.02,0.00021918,2]
[315940994,1709295031922,-9148.46,0.00021918,2]
[315940995,1709295031932,-2500.0,0.0002195,2]
[315940996,1709295031941,-253.5555,0.0002195,2]
[315940997,1709295031951,-1000.0,0.00022,2]
[315940998,1709295031961,-262.02,0.00022033,2]
[315940999,1709295031970,-420.1978,0.00022042,2]
[315941000,1709295031979,-912.447,0.00022042,2]
[315941001,1709295031990,-1825.05,0.00022048,2]
[315941002,1709295032001,-471.96126203,0.00022048,2]
[315941003,1709295032011,-1000.0,0.00022049,2]
[315941004,1709295032020,-2192.6153,0.00022049,2]
[315941005,1709295032030,-500.0,0.0002205,2]
[315941006,1709295032040,-500.0,0.0002205,2]
[315941007,1709295032049,-500.0,0.0002205,2]
[315941008,1709295032060,-500.0,0.0002205,2]
[315941009,1709295032069,-500.0,0.0002205,2]
[315941010,1709295032079,-500.0,0.0002205,2]
[315941011,1709295032088,-500.0,0.0002205,2]
[315941012,1709295032097,-500.0,0.0002205,2]
[315941013,1709295032107,-676.96,0.0002205,2]
[315941014,1709295032116,-500.0,0.0002205,2]
[315941015,1709295032126,-500.0,0.0002205,2]
[315941016,1709295032135,-500.0,0.0002205,2]
[315941017,1709295032145,-503.1903906,0.0002205,2]
[315941018,1709295032154,-500.0,0.0002205,2]
[315941019,1709295032164,-500.0,0.0002205,2]
[315941020,1709295032173,-503.27345333,0.0002205,2]
[315941021,1709295032183,-500.0,0.0002205,2]
[315941022,1709295032192,-500.0,0.0002205,2]
[315941023,1709295032204,-500.0,0.0002205,2]
[315941024,1709295032214,-294.53366698,0.0002205,2]
[315941025,1709295032232,-205.46633302,0.0002205,2]
[315941026,1709295032242,-500.0,0.0002205,2]
[315941027,1709295032254,-1289.53,0.0002205,2]
[315941028,1709295032264,-500.0,0.0002205,2]
[315941029,1709295032273,-500.0,0.0002205,2]
[315941030,1709295032283,-500.0,0.0002205,2]
[315941031,1709295032293,-505.68,0.0002205,2]
[315941032,1709295032303,-165.04598128,0.0002205,2]
[315941033,1709295032313,-500.0,0.0002205,2]
[315941034,1709295032322,-500.0,0.0002205,2]
[315941035,1709295032332,-500.0,0.0002205,2]
[315941036,1709295032341,-501.10032183,0.0002205,2]
[315941037,1709295032352,-500.0,0.0002205,2]
[315941038,1709295032362,-500.0,0.0002205,2]
[315941039,1709295032371,-500.0,0.0002205,2]
[315941040,1709295032380,-5436.41,0.0002205,2]
[315941041,1709295032390,-500.0,0.0002205,2]
[315941042,1709295032399,-500.0,0.0002205,2]
[315941043,1709295032409,-500.0,0.0002205,2]
[315941044,1709295032418,-419.82451638,0.0002205,2]
[315941045,1709295032427,-571.18368796,0.0002205,2]
[315941046,1709295032438,-507.49072612,0.0002205,2]
[315941047,1709295032448,-500.0,0.0002205,2]
[315941048,1709295032458,-669.13,0.0002205,2]
[315941049,1709295032469,-500.0,0.0002205,2]
[315941050,1709295032478,-500.0,0.0002205,2]
[315941051,1709295032487,-500.0,0.0002205,2]
[315941052,1709295032497,-500.0,0.0002205,2]
[315941053,1709295032507,-500.0,0.0002205,2]
[315941054,1709295032516,-500.0,0.0002205,2]
[315941055,1709295032526,-500.0,0.0002205,2]
[315941056,1709295032535,-500.0,0.0002205,2]
[315941057,1709295032545,-500.0,0.0002205,2]
[315941058,1709295032554,-500.0,0.0002205,2]
[315941059,1709295032564,-500.0,0.0002205,2]
[315941060,1709295032573,-500.0,0.0002205,2]
[315941061,1709295032583,-500.0,0.0002205,2]
[315941062,1709295032592,-500.0,0.0002205,2]
[315941063,1709295032601,-500.0,0.0002205,2]
[315941064,1709295032610,-500.0,0.0002205,2]
[315941065,1709295032620,-500.0,0.0002205,2]
[315941066,1709295032629,-500.0,0.0002205,2]
[315941067,1709295032639,-500.0,0.0002205,2]
[315941068,1709295032648,-503.06210698,0.0002205,2]
[315941069,1709295032657,-500.0,0.0002205,2]
[315941070,1709295032666,-500.0,0.0002205,2]
[315941071,1709295032676,-500.0,0.0002205,2]
[315941072,1709295032685,-500.0,0.0002205,2]
[315941073,1709295032694,-500.0,0.0002205,2]
[315941074,1709295032704,-500.0,0.0002205,2]
[315941075,1709295032713,-503.98528411,0.0002205,2]
[315941076,1709295032722,-500.0,0.0002205,2]
[315941077,1709295032731,-273.09104232,0.0002205,2]
[315941078,1709295033921,-226.90895768,0.0002205,2]
[315941079,1709295033931,-500.0,0.0002205,2]
[315941080,1709295033940,-500.0,0.0002205,2]
[315941081,1709295033949,-500.0,0.0002205,2]
[315941082,1709295033958,-500.0,0.0002205,2]
[315941083,1709295033968,-500.0,0.0002205,2]
[315941084,1709295033978,-500.0,0.0002205,2]
[315941085,1709295033988,-3.72406298,0.0002205,2]
[315941086,1709295034005,-876.40593702,0.0002205,2]
[315941087,1709295034014,-500.0,0.0002205,2]
[315941088,1709295034023,-500.0,0.0002205,2]
[315941089,1709295034033,-500.0,0.0002205,2]
[315941090,1709295034043,-500.0,0.0002205,2]
[315941091,1709295034052,-500.0,0.0002205,2]
[315941092,1709295034062,-500.0,0.0002205,2]
[315941093,1709295034071,-500.0,0.0002205,2]
[315941094,1709295034080,-500.0,0.0002205,2]
[315941095,1709295034090,-500.0,0.0002205,2]
[315941096,1709295034099,-500.0,0.0002205,2]
[315941097,1709295034108,-500.0,0.0002205,2]
[315941098,1709295034117,-345.26633397,0.0002205,2]
[315941100,1709295034126,-500.45,0.0002205,2]
[315941102,1709295034136,-500.0,0.0002205,2]
[315941104,1709295034145,-500.0,0.0002205,2]
[315941106,1709295034154,-511.17660244,0.0002205,2]
[315941108,1709295034163,-500.0,0.0002205,2]
[315941110,1709295034172,-535.42,0.0002205,2]
[315941111,1709295034181,-500.0,0.0002205,2]
[315941112,1709295034193,-500.0,0.0002205,2]
[315941113,1709295034203,-502.47386285,0.0002205,2]
[315941114,1709295034212,-500.0,0.0002205,2]
[315941115,1709295034223,-500.0,0.0002205,2]
[315941116,1709295034232,-500.0,0.0002205,2]
[315941118,1709295034241,-500.0,0.0002205,2]
[315941120,1709295034250,-319.8647275,0.0002205,2]
[315941122,1709295034259,-500.0,0.0002205,2]
[315941124,1709295034269,-500.0,0.0002205,2]
[315941126,1709295034279,-500.0,0.0002205,2]
[315941128,1709295034288,-506.9407886,0.0002205,2]
[315941130,1709295034297,-500.0,0.0002205,2]
[315941132,1709295034306,-500.0,0.0002205,2]
[315941133,1709295034316,-500.0,0.0002205,2]
[315941134,1709295034325,-500.0,0.0002205,2]
[315941135,1709295034335,-445.76529316,0.0002205,2]
[315941136,1709295034344,-500.0,0.0002205,2]
[315941138,1709295034354,-500.0,0.0002205,2]
[315941139,1709295034363,-502.71064807,0.0002205,2]
[315941140,1709295034373,-500.0,0.0002205,2]
[315941141,1709295034382,-500.0,0.0002205,2]
[315941142,1709295034392,-504.86104408,0.0002205,2]
[315941143,1709295034401,-499.3728485,0.0002205,2]
[315941144,1709295034410,-500.0,0.0002205,2]
[315941145,1709295034420,-500.0,0.0002205,2]
[315941146,1709295034429,-3393.25,0.0002205,2]
[315941147,1709295034438,-500.0,0.0002205,2]
[315941148,1709295034449,-592.55,0.0002205,2]
[315941149,1709295034458,-500.0,0.0002205,2]
[315941150,1709295034467,-500.0,0.0002205,2]
[315941151,1709295034476,-500.0,0.0002205,2]
[315941152,1709295034486,-507.5536307,0.0002205,2]
[315941153,1709295034495,-500.0,0.0002205,2]
[315941154,1709295034506,-500.0,0.0002205,2]
[315941155,1709295034515,-500.0,0.0002205,2]
[315941156,1709295034524,-500.0,0.0002205,2]
[315941157,1709295034534,-500.0,0.0002205,2]
[315941158,1709295034543,-500.0,0.0002205,2]
[315941159,1709295034552,-500.0,0.0002205,2]
[315941160,1709295034561,-500.0,0.0002205,2]
[315941161,1709295034570,-500.0,0.0002205,2]
[315941162,1709295034579,-502.8697998,0.0002205,2]
[315941163,1709295034588,-500.0,0.0002205,2]
[315941164,1709295034597,-500.0,0.0002205,2]
[315941165,1709295034606,-500.0,0.0002205,2]
[315941166,1709295034615,-500.0,0.0002205,2]
[315941167,1709295034624,-612.96,0.0002205,2]
[315941168,1709295034634,-500.0,0.0002205,2]
[315941169,1709295034643,-500.0,0.0002205,2]
[315941170,1709295034652,-500.0,0.0002205,2]
[315941171,1709295034661,-500.0,0.0002205,2]
[315941172,1709295034670,-500.0,0.0002205,2]
[315941173,1709295034679,-500.0,0.0002205,2]